fUSD/lending_fUSD_20240619
["ID","MTS","AMOUNT","RATE_DAILY","PERIOD"]
[329880285,1718783438696,-217.64027755,0.00013696,2]
[329880287,1718783438705,-214.37956609,0.00013696,2]
[329880289,1718783438715,-155.56475539,0.00013696,2]
[329880291,1718783438724,-163.8721123,0.00013696,2]
[329880293,1718783438733,-157.73602189,0.00013696,2]
[329880295,1718783438742,-317.12810746,0.00013696,2]
[329880297,1718783438751,-161.78621996,0.00013696,2]
[329880299,1718783438761,-495.16748041,0.00013696,2]
[329880301,1718783438771,-158.01880147,0.00013696,2]
[329880303,1718783438780,-161.1766454,0.00013696,2]
[329880305,1718783438790,-1770.50503693,0.00013696,2]
[329880307,1718783438800,-158.21646444,0.00013696,2]
[329880309,1718783438809,-163.81475661,0.00013696,2]
[329880311,1718783438819,-155.0,0.00013696,2]
[329880313,1718783438829,-156.18797974,0.00013696,2]
[329880315,1718783438838,-257.78971876,0.00013696,2]
[329880317,1718783438848,-269.6222555,0.00013696,2]
[329880319,1718783438858,-251.28886194,0.00013696,2]
[329880321,1718783438868,-254.08732709,0.00013696,2]
[329880323,1718783438877,-2823.25950554,0.00013696,2]
[329880325,1718783438888,-155.36125809,0.00013696,2]
[329880327,1718783438898,-578.01695237,0.00013696,2]
[329880329,1718783438908,-167.99998002,0.00013696,2]
[329880331,1718783438919,-155.0,0.00013696,2]
[329880333,1718783438928,-310.23861681,0.00013696,2]
[329880335,1718783438938,-158.20782805,0.00013696,2]
[329880337,1718783438948,-163.52177512,0.00013696,2]
[329880339,1718783438960,-163.37193246,0.00013696,2]
[329880341,1718783438969,-361.0449962,0.00013696,2]
[329880343,1718783438979,-156.21854213,0.00013696,2]
[329880345,1718783438988,-480.56257194,0.00013696,2]
[329880347,1718783438998,-156.74800191,0.00013696,2]
[329880349,1718783439007,-667.21533428,0.00013696,2]
[329880351,1718783439017,-157.99764397,0.00013696,2]
[329880353,1718783439027,-158.78718057,0.00013696,2]
[329880355,1718783439036,-252.5671339,0.00013696,2]
[329880357,1718783439047,-27643.90002135,0.00013696,2]
[329880359,1718783439057,-170.85320979,0.00013696,2]
[329880361,1718783439066,-364.86866115,0.00013696,2]
[329880363,1718783439076,-156.66679349,0.00013696,2]
[329880365,1718783439086,-155.23397743,0.00013696,2]
[329880366,1718783439096,-164.36464833,0.00013696,2]
[329880369,1718783439106,-224.30767836,0.00013696,2]
[329880371,1718783439116,-159.06738857,0.00013696,2]
[329880373,1718783439126,-232.67318766,0.00013696,2]
[329880375,1718783439139,-182.6315174,0.00013696,2]
[329880377,1718783439148,-157.33248771,0.00013696,2]
[329880379,1718783439158,-155.0,0.00013696,2]
[329880381,1718783439168,-157.09346571,0.00013696,2]
[329880383,1718783439179,-155.0,0.00013696,2]
[329880385,1718783439188,-1252.78329408,0.00013696,2]
[329880387,1718783439199,-291.19590536,0.00013696,2]
[329880389,1718783439209,-155.74265188,0.00013696,2]
[329880391,1718783439219,-338.68648196,0.00013696,2]
[329880393,1718783439228,-317.01274164,0.00013696,2]
[329880395,1718783439239,-155.37425836,0.00013696,2]
[329880397,1718783439249,-934.02340679,0.00013696,2]
[329880399,1718783439258,-804.98310741,0.00013696,2]
[329880401,1718783439268,-304.61051398,0.00013696,2]
[329880403,1718783439278,-1625.10546899,0.00013696,2]
[329880405,1718783439288,-155.8937949,0.00013696,2]
[329880407,1718783439298,-211.31910478,0.00013696,2]
[329880409,1718783439307,-872.44211084,0.00013696,2]
[329880411,1718783439317,-818.48434887,0.00013696,2]
[329880413,1718783439326,-1189.44417839,0.00013696,2]
[329880415,1718783439340,-327.183216,0.00013696,2]
[329880417,1718783439350,-297.65866355,0.00013696,2]
[329880418,1718783439360,-1589.61570543,0.00013696,2]
[329880419,1718783439370,-300.79437591,0.00013696,2]
[329880420,1718783439380,-2333.89036676,0.00013696,2]
[329880421,1718783439391,-205.2059502,0.00013696,2]
[329880422,1718783439400,-573.8419998,0.00013696,2]
[329880423,1718783439410,-329.78934151,0.00013696,2]
[329880424,1718783439420,-386.72312449,0.00013696,2]
[329880425,1718783439429,-805.38164574,0.00013696,2]
[329880426,1718783439439,-649.37320281,0.00013696,2]
[329880427,1718783439448,-195.78998469,0.00013696,2]
[329880428,1718783439458,-678.61957083,0.00013696,2]
[329880429,1718783439467,-220.94986941,0.00013696,2]
[329880430,1718783439477,-155.37726229,0.00013696,2]
[329880431,1718783439487,-155.7642072,0.00013696,2]
[329880432,1718783439497,-208.27615218,0.00013696,2]
[329880434,1718783439507,-513.52579472,0.00013696,2]
[329880437,1718783439518,-300.69364558,0.00013696,2]
[329880438,1718783439528,-155.76281421,0.00013696,2]
[329880440,1718783439537,-207.31729687,0.00013696,2]
[329880442,1718783439547,-173.52806846,0.00013696,2]
[329880445,1718783439558,-392.03875119,0.00013696,2]
[329880447,1718783439568,-1000.0,0.00013696,2]
[329880449,1718783439578,-179.44313478,0.00013696,2]
[329880451,1718783439588,-22157.41401906,0.00013696,2]
[329880453,1718783439597,-464.16010482,0.00013697,2]
[329880455,1718783439607,-2461.27345951,0.00013697,2]
[329880457,1718783439617,-897.82,0.00013698,2]
[329880459,1718783439626,-500.0,0.00013698,2]
[329880461,1718783439636,-500.0,0.00013698,2]
[329880462,1718783439645,-500.0,0.00013698,2]
[329880465,1718783439656,-500.0,0.00013698,2]
[329880467,1718783439666,-500.0,0.00013698,2]
[329880469,1718783439675,-647.74,0.00013698,2]
[329880471,1718783439686,-500.0,0.00013698,2]
[329880473,1718783439695,-500.0,0.00013698,2]
[329880475,1718783439705,-500.0,0.00013698,2]
[329880477,1718783439714,-500.0,0.00013698,2]
[329880479,1718783439724,-500.0,0.00013698,2]
[329880481,1718783439733,-315.46686337,0.00013698,2]
[329880483,1718783439743,-838.72,0.00013698,2]
[329880485,1718783439752,-500.0,0.00013698,2]
[329880486,1718783439761,-500.0,0.00013698,2]
[329880488,1718783439771,-500.0,0.00013698,2]
[329880490,1718783439781,-500.0,0.00013698,2]
[329880492,1718783439790,-500.0,0.00013698,2]
[329880494,1718783439800,-500.0,0.00013698,2]
[329880496,1718783439809,-500.0,0.00013698,2]
[329880498,1718783439818,-500.0,0.00013698,2]
[329880500,1718783439828,-579.5111127,0.00013698,2]
[329880502,1718783439837,-1255.52,0.00013698,2]
[329880504,1718783439847,-839.39,0.00013698,2]
[329880506,1718783439858,-500.0,0.00013698,2]
[329880508,1718783439868,-233.4364936,0.00013698,2]
[329880511,1718783439879,-1191.19,0.00013698,2]
[329880512,1718783439890,-500.0,0.00013698,2]
[329880514,1718783439899,-1285.54,0.00013698,2]
[329880516,1718783439908,-1223.16,0.00013698,2]
[329880518,1718783439918,-500.0,0.00013698,2]
[329880520,1718783439927,-500.0,0.00013698,2]
[329880522,1718783439937,-623.31,0.00013698,2]
[329880524,1718783439946,-1346.27,0.00013698,2]
[329880526,1718783439955,-500.0,0.00013698,2]
[329880528,1718783439964,-500.0,0.00013698,2]
[329880530,1718783439974,-500.0,0.00013698,2]
[329880532,1718783439984,-500.0,0.00013698,2]
[329880534,1718783439994,-500.0,0.00013698,2]
[329880536,1718783440003,-500.0,0.00013698,2]
[329880539,1718783440014,-500.0,0.00013698,2]
[329880540,1718783440023,-949.26,0.00013698,2]
[329880543,1718783440033,-500.0,0.00013698,2]
[329880545,1718783440043,-672.71,0.00013698,2]
[329880575,1718783440325,-500.0,0.00013698,2]
[329880577,1718783440339,-885.89,0.00013698,2]
[329880579,1718783440348,-500.0,0.00013698,2]
[329880581,1718783440358,-752.33,0.00013698,2]
[329880583,1718783440368,-778.22,0.00013698,2]
[329880585,1718783440378,-798.13,0.00013698,2]
[329880587,1718783440389,-624.14,0.00013698,2]
[329880589,1718783440397,-500.0,0.00013698,2]
[329880591,1718783440407,-500.0,0.00013698,2]
[329880593,1718783440418,-500.0,0.00013698,2]
[329880595,1718783440427,-500.0,0.00013698,2]
[329880597,1718783440436,-864.87,0.00013698,2]
[329880599,1718783440445,-926.05,0.00013698,2]
[329880601,1718783440454,-500.0,0.00013698,2]
[329880603,1718783440464,-853.22,0.00013698,2]
[329880605,1718783440473,-500.0,0.00013698,2]
[329880607,1718783440482,-500.0,0.00013698,2]
[329880609,1718783440491,-500.0,0.00013698,2]
[329880610,1718783440500,-500.0,0.00013698,2]
[329880612,1718783440509,-500.0,0.00013698,2]
[329880614,1718783440518,-818.1,0.00013698,2]
[329880617,1718783440528,-555.08,0.00013698,2]
[329880619,1718783440538,-1250.17,0.00013698,2]
[329880621,1718783440547,-500.0,0.00013698,2]
[329880623,1718783440557,-500.0,0.00013698,2]
[329880624,1718783440566,-500.0,0.00013698,2]
[329880626,1718783440576,-832.66,0.00013698,2]
[329880628,1718783440584,-500.0,0.00013698,2]
[329880630,1718783440594,-703.85,0.00013698,2]
[329880632,1718783440603,-1067.4,0.00013698,2]
[329880634,1718783440612,-500.0,0.00013698,2]
[329880636,1718783440622,-500.0,0.00013698,2]
[329880638,1718783440632,-500.0,0.00013698,2]
[329880640,1718783440645,-500.0,0.00013698,2]
[329880643,1718783440655,-605.21,0.00013698,2]
[329880645,1718783440664,-500.0,0.00013698,2]
[329880646,1718783440674,-1088.84,0.00013698,2]
[329880648,1718783440683,-500.0,0.00013698,2]
[329880650,1718783440692,-500.0,0.00013698,2]
[329880652,1718783440701,-500.0,0.00013698,2]
[329880654,1718783440711,-500.0,0.00013698,2]
[329880656,1718783440720,-763.05,0.00013698,2]
[329880658,1718783440729,-500.0,0.00013698,2]
[329880660,1718783440738,-500.0,0.00013698,2]
[329880662,1718783440748,-589.94,0.00013698,2]
[329880664,1718783440757,-500.0,0.00013698,2]
[329880666,1718783440766,-315.9985246,0.00013698,2]
[329880668,1718783440775,-1041.09,0.00013698,2]
[329880670,1718783440784,-977.22,0.00013698,2]
[329880672,1718783440794,-500.0,0.00013698,2]
[329880674,1718783440803,-500.0,0.00013698,2]
[329880676,1718783440812,-1150.63,0.00013698,2]
[329880678,1718783440821,-1106.68,0.00013698,2]
[329880680,1718783440830,-500.0,0.00013698,2]
[329880682,1718783440840,-649.34875258,0.00013698,2]
[329880684,1718783440849,-500.0,0.00013698,2]
[329880686,1718783440858,-500.0,0.00013698,2]
[329880688,1718783440868,-644.64,0.00013698,2]
[329880690,1718783440877,-500.0,0.00013698,2]
[329880692,1718783440888,-500.0,0.00013698,2]
[329880694,1718783440897,-833.8,0.00013698,2]
[329880696,1718783440907,-787.62,0.00013698,2]
[329880698,1718783440916,-1149.77,0.00013698,2]
[329880700,1718783440925,-500.0,0.00013698,2]
[329880702,1718783440935,-500.0,0.00013698,2]
[329880704,1718783440943,-500.0,0.00013698,2]
[329880706,1718783440952,-1117.09,0.00013698,2]
[329880708,1718783440962,-1223.58,0.00013698,2]
[329880710,1718783440973,-956.72,0.00013698,2]
[329880712,1718783440982,-630.81,0.00013698,2]
[329880714,1718783440991,-665.85,0.00013698,2]
[329880716,1718783441001,-1699.85,0.00013698,2]
[329880718,1718783441010,-500.0,0.00013698,2]
[329880720,1718783441019,-500.0,0.00013698,2]
[329880722,1718783441029,-1365.56,0.00013698,2]
[329880724,1718783441039,-539.35,0.00013698,2]
[329880726,1718783441049,-500.0,0.00013698,2]
[329880728,1718783441058,-500.0,0.00013698,2]
[329880730,1718783441067,-500.0,0.00013698,2]
[329880732,1718783441076,-1024.3,0.00013698,2]
[329880734,1718783441085,-500.0,0.00013698,2]
[329880736,1718783441095,-1317.35,0.00013698,2]
[329880738,1718783441104,-500.0,0.00013698,2]
[329880740,1718783441114,-500.0,0.00013698,2]
[329880742,1718783441123,-676.34,0.00013698,2]
[329880744,1718783441133,-500.0,0.00013698,2]
[329880746,1718783441142,-500.0,0.00013698,2]
[329880748,1718783441151,-705.48,0.00013698,2]
[329880750,1718783441161,-500.0,0.00013698,2]
[329880752,1718783441170,-500.0,0.00013698,2]
[329880754,1718783441180,-91.19489258,0.00013698,2]
[329880815,1718783441763,-554.54862722,0.00013698,2]
[329880817,1718783441773,-500.0,0.00013698,2]
[329880819,1718783441783,-441.02763824,0.00013698,2]
[329880930,1718783442914,-229.62236176,0.00013698,2]
[329880932,1718783442923,-609.44,0.00013698,2]
[329880934,1718783442933,-508.97,0.00013698,2]
[329880936,1718783442942,-2043.58,0.00013698,2]
[329880938,1718783442951,-500.0,0.00013698,2]
[329880940,1718783442961,-500.0,0.00013698,2]
[329880942,1718783442970,-500.0,0.00013698,2]
[329880944,1718783442980,-500.0,0.00013698,2]
[329880947,1718783442990,-933.75,0.00013698,2]
[329880950,1718783442999,-832.43,0.00013698,2]
[329880953,1718783443009,-500.0,0.00013698,2]
[329880956,1718783443018,-1325.89,0.00013698,2]
[329880958,1718783443027,-1067.86,0.00013698,2]
[329880960,1718783443037,-1524.62,0.00013698,2]
[329880962,1718783443046,-764.15,0.00013698,2]
[329880964,1718783443055,-840.87,0.00013698,2]
[329880966,1718783443064,-798.73,0.00013698,2]
[329880968,1718783443074,-1430.96,0.00013698,2]
[329880970,1718783443083,-500.0,0.00013698,2]
[329880972,1718783443092,-858.83,0.00013698,2]
[329880974,1718783443101,-500.0,0.00013698,2]
[329880976,1718783443112,-1375.01,0.00013698,2]
[329880978,1718783443122,-748.88,0.00013698,2]
[329880981,1718783443131,-1516.77,0.00013698,2]
[329880983,1718783443141,-650.15,0.00013698,2]
[329880985,1718783443151,-208.98385012,0.00013698,2]
[329881002,1718783443291,-291.01614988,0.00013698,2]
[329881004,1718783443300,-765.47947567,0.00013698,2]
[329881042,1718783443652,-768.95049403,0.00013698,2]
[329881112,1718783444428,-114.0200303,0.00013698,2]
[329881113,1718783444438,-1132.33,0.00013698,2]
[329881114,1718783444447,-502.55,0.00013698,2]
[329881115,1718783444457,-500.0,0.00013698,2]
[329881116,1718783444466,-500.0,0.00013698,2]
[329881117,1718783444475,-886.93,0.00013698,2]
[329881118,1718783444485,-2391.58980393,0.00013698,2]
[329881119,1718783444497,-415.60604073,0.00013698,2]
[329881120,1718783444508,-2192.80415534,0.00013698,2]
[329881121,1718783444517,-656.22030559,0.00013698,2]
[329881126,1718783444727,-590.14969441,0.00013698,2]
[329881127,1718783444737,-1144.58059366,0.00013698,2]
[329881151,1718783647808,736.04,0.00010308,2]
[329881152,1718783699875,348.35621855,0.00010308,2]
[329881153,1718783713866,280.4137144,0.00010308,2]
[329881156,1718783852990,155.0,0.00010308,2]
[329881157,1718783853916,948.686561,0.00010308,2]
[329881158,1718783889233,5824.54350605,0.00010308,2]
[329881159,1718783889257,10000.0,0.00010308,2]
[329881160,1718783889282,9846.60026621,0.00010308,2]
[329881161,1718783889307,10000.0,0.00010308,2]
[329881162,1718783889331,10000.0,0.00010308,2]
[329881163,1718783889355,10000.0,0.00010308,2]
[329881164,1718783889377,10000.0,0.00010308,2]
[329881165,1718783889401,10000.0,0.00010308,2]
[329881166,1718783889424,10000.0,0.00010308,2]
[329881167,1718783889447,10000.0,0.00010308,2]
[329881168,1718783889475,10000.0,0.00010308,2]
[329881169,1718783889501,10000.0,0.00010308,2]
[329881170,1718783889524,10000.0,0.00010308,2]
[329881171,1718783889547,10000.0,0.00010308,2]
[329881172,1718783889570,216286.56307544,0.00010308,2]
[329881173,1718783892904,169.7,9.522e-05,2]
[329881174,1718784234485,400.0,0.00024,30]
[329881175,1718784259892,699.23,9.826e-05,2]
[329881187,1718784632713,-1000.0,0.00011695,2]
[329881188,1718784632728,-250.0,0.00011696,2]
[329881189,1718784632741,-1197.68,0.00011723,2]
[329881190,1718784632751,-929.75333317,0.00011723,2]
[329881192,1718784632760,-4648.33,0.00011725,2]
[329881193,1718784632771,-184.35,0.00011781,2]
[329881195,1718784632780,-170.15,0.00011783,2]
[329881196,1718784632789,-600.0,0.00011811,2]
[329881197,1718784632798,-250.0,0.00011875,2]
[329881198,1718784632810,-1000.0,0.00011899,2]
[329881199,1718784632819,-150.99,0.00011899,2]
[329881200,1718784632829,-169.47,0.00011929,2]
[329881201,1718784632838,-200.0,0.00011932,2]
[329881202,1718784632847,-150.99,0.00011932,2]
[329881203,1718784632856,-201.65,0.00011932,2]
[329881204,1718784632866,-164.74,0.00011969,2]
[329881205,1718784632876,-1965.3,0.00012027,2]
[329881206,1718784632886,-699.23,0.0001209,2]
[329881207,1718784632896,-164.74,0.00012094,2]
[329881208,1718784632906,-164.74,0.00012219,2]
[329881209,1718784632916,-187.17,0.00012261,2]
[329881210,1718784632926,-400.0,0.00012321,2]
[329881211,1718784632936,-164.74,0.00012344,2]
[329881212,1718784632945,-132369.77496958,0.00012467,2]
[329881213,1718784632955,-164.74,0.00012468,2]
[329881214,1718784632964,-999.99,0.00012535,2]
[329881215,1718784632974,-164.74,0.00012593,2]
[329881216,1718784632983,-445.46,0.0001274,2]
[329881217,1718784632996,-165.66,0.00012826,2]
[329881218,1718784633005,-165.66,0.00012836,2]
[329881219,1718784633014,-165.66,0.00012847,2]
[329881220,1718784633022,-165.66,0.00012858,2]
[329881221,1718784633031,-165.66,0.00012868,2]
[329881222,1718784633040,-258.2968,0.00012878,2]
[329881223,1718784633049,-1218.9481,0.00012878,2]
[329881224,1718784633059,-165.66,0.00012879,2]
[329881225,1718784633068,-399.5407,0.0001288,2]
[329881226,1718784633078,-165.66,0.0001289,2]
[329881227,1718784633088,-1278.81533157,0.00012978,2]
[329881228,1718784633097,-1354.22365978,0.0001298,2]
[329881229,1718784633107,-150.0,0.00013151,2]
[329881230,1718784633116,-303.71,0.00013151,2]
[329881231,1718784633126,-163.63,0.00013151,2]
[329881232,1718784633135,-164.51,0.00013151,2]
[329881233,1718784633145,-303.8,0.00013151,2]
[329881234,1718784633154,-150.0,0.00013151,2]
[329881235,1718784633164,-150.0,0.00013151,2]
[329881236,1718784633173,-164.51,0.00013151,2]
[329881237,1718784633184,-150.0,0.00013151,2]
[329881238,1718784633193,-354.09,0.00013151,2]
[329881239,1718784633202,-150.0,0.00013151,2]
[329881240,1718784633212,-164.51,0.00013151,2]
[329881241,1718784633221,-354.09,0.00013151,2]
[329881242,1718784633231,-150.0,0.00013151,2]
[329881243,1718784633243,-354.09,0.00013151,2]
[329881244,1718784633252,-150.0,0.00013151,2]
[329881245,1718784633261,-164.51,0.00013151,2]
[329881246,1718784633271,-150.0,0.00013151,2]
[329881247,1718784633280,-164.51,0.00013151,2]
[329881248,1718784633290,-354.09,0.00013151,2]
[329881249,1718784633300,-154.87,0.00013151,2]
[329881250,1718784633309,-155.67,0.00013151,2]
[329881251,1718784633318,-354.09,0.00013151,2]
[329881252,1718784633327,-423.43,0.00013151,2]
[329881253,1718784633337,-250.19,0.00013151,2]
[329881254,1718784633346,-423.43,0.00013151,2]
[329881255,1718784633356,-527.36,0.00013151,2]
[329881256,1718784633366,-423.43,0.00013151,2]
[329881257,1718784633375,-527.36,0.00013151,2]
[329881258,1718784633384,-423.43,0.00013151,2]
[329881259,1718784633394,-527.36,0.00013151,2]
[329881260,1718784633403,-419.3,0.00013151,2]
[329881261,1718784633412,-527.36,0.00013151,2]
[329881262,1718784633422,-527.36,0.00013151,2]
[329881263,1718784633431,-247.13,0.00013151,2]
[329881264,1718784633441,-150.0,0.00013151,2]
[329881265,1718784633450,-150.0,0.000132,2]
[329881266,1718784633459,-527.36,0.00013205,2]
[329881267,1718784633470,-150.0,0.00013205,2]
[329881268,1718784633479,-423.43,0.00013205,2]
[329881269,1718784633489,-527.36,0.00013205,2]
[329881270,1718784633499,-423.43,0.00013205,2]
[329881271,1718784633509,-150.0,0.00013205,2]
[329881272,1718784633518,-527.36,0.00013205,2]
[329881273,1718784633528,-423.43,0.00013205,2]
[329881274,1718784633537,-527.36,0.00013205,2]
[329881275,1718784633547,-527.36,0.00013205,2]
[329881276,1718784633556,-300.0,0.0001326,2]
[329881277,1718784633566,-600.0,0.00013287,2]
[329881278,1718784633849,-150.0,0.00013288,2]
[329881279,1718784633859,-150.0,0.00013288,2]
[329881280,1718784633868,-150.0,0.00013288,2]
[329881281,1718784633878,-177.92943971,0.00013325,2]
[329881282,1718784633888,-36502.9365,0.00013396,2]
[329881283,1718784633897,-100000.0,0.00013396,2]
[329881284,1718784633907,-136946.1037,0.00013396,2]
[329881285,1718784633916,-1018.0,0.000134,2]
[329881286,1718784633926,-300.0,0.00013425,2]
[329881287,1718784633936,-527.36,0.00013425,2]
[329881288,1718784633945,-150.0,0.00013425,2]
[329881289,1718784633954,-527.36,0.00013425,2]
[329881290,1718784633964,-423.43,0.00013425,2]
[329881291,1718784633973,-354.09,0.00013425,2]
[329881292,1718784633982,-150.0,0.00013425,2]
[329881293,1718784633993,-527.36,0.00013425,2]
[329881294,1718784634002,-423.43,0.00013425,2]
[329881295,1718784634012,-150.0,0.00013425,2]
[329881296,1718784634021,-527.36,0.00013425,2]
[329881297,1718784634030,-423.43,0.00013425,2]
[329881298,1718784634039,-150.0,0.00013425,2]
[329881299,1718784634048,-38118.0,0.0001344,2]
[329881300,1718784634058,-5164.0,0.0001344,2]
[329881301,1718784634067,-290.0,0.0001344,2]
[329881302,1718784634076,-1234.28,0.0001344,2]
[329881303,1718784634086,-500.0,0.00013498,2]
[329881304,1718784634095,-8381.809327,0.000135,2]
[329881305,1718784634105,-150.32777,0.00013561,2]
[329881306,1718784634114,-4529.94827766,0.00013598,2]
[329881307,1718784634124,-160.13713916,0.00013598,2]
[329881308,1718784634133,-10000.0,0.00013598,2]
[329881309,1718784634143,-413.92057913,0.00013679,2]
[329881310,1718784634153,-209.23301289,0.00013697,2]
[329881311,1718784634164,-4857.47040926,0.00013697,2]
[329881312,1718784634174,-1437.52003661,0.00013697,3]
[329881313,1718784634183,-515.0,0.00013698,2]
[329881314,1718784634193,-687.0,0.00013698,2]
[329881315,1718784634204,-600.91,0.00013698,2]
[329881316,1718784634215,-500.0,0.00013698,2]
[329881317,1718784634225,-754.81,0.00013698,2]
[329881318,1718784634235,-500.0,0.00013698,2]
[329881319,1718784634248,-676.09,0.00013698,2]
[329881320,1718784634258,-2000.0,0.00013698,2]
[329881321,1718784634268,-538.45,0.00013698,2]
[329881322,1718784634278,-500.0,0.00013698,2]
[329881323,1718784634288,-200.0,0.00013698,2]
[329881324,1718784634297,-992.74,0.00013698,2]
[329881325,1718784634307,-500.0,0.00013698,2]
[329881326,1718784634317,-500.0,0.00013698,2]
[329881327,1718784634327,-500.0,0.00013698,2]
[329881328,1718784634336,-500.0,0.00013698,2]
[329881329,1718784634346,-1262.46,0.00013698,2]
[329881330,1718784634355,-500.0,0.00013698,2]
[329881331,1718784634366,-637.51,0.00013698,2]
[329881332,1718784634375,-500.0,0.00013698,2]
[329881333,1718784634385,-500.0,0.00013698,2]
[329881334,1718784634395,-500.0,0.00013698,2]
[329881335,1718784634404,-500.0,0.00013698,2]
[329881336,1718784634414,-500.0,0.00013698,2]
[329881337,1718784634423,-516.87,0.00013698,2]
[329881338,1718784634433,-1023.36,0.00013698,2]
[329881339,1718784634443,-500.0,0.00013698,2]
[329881340,1718784634452,-635.753824,0.00013698,2]
[329881341,1718784634462,-623.06,0.00013698,2]
[329881342,1718784634472,-500.0,0.00013698,2]
[329881343,1718784634482,-500.0,0.00013698,2]
[329881344,1718784634493,-209.07631325,0.00013698,2]
[329881345,1718784634503,-823.05,0.00013698,2]
[329881346,1718784634513,-500.0,0.00013698,2]
[329881347,1718784634522,-1218.46,0.00013698,2]
[329881348,1718784634531,-896.11,0.00013698,2]
[329881349,1718784634541,-675.27,0.00013698,2]
[329881350,1718784634550,-584.05,0.00013698,2]
[329881351,1718784634560,-640.8,0.00013698,2]
[329881352,1718784634568,-784.43,0.00013698,2]
[329881353,1718784634578,-704.66,0.00013698,2]
[329881354,1718784634587,-500.0,0.00013698,2]
[329881355,1718784634596,-217.96335488,0.00013698,2]
[329881356,1718784634605,-500.0,0.00013698,2]
[329881357,1718784634614,-1461.1,0.00013698,2]
[329881358,1718784634624,-500.0,0.00013698,2]
[329881359,1718784634633,-635.86,0.00013698,2]
[329881360,1718784634643,-500.0,0.00013698,2]
[329881361,1718784634652,-500.0,0.00013698,2]
[329881362,1718784634662,-500.0,0.00013698,2]
[329881363,1718784634671,-500.0,0.00013698,2]
[329881364,1718784634680,-546.2,0.00013698,2]
[329881365,1718784634690,-914.09,0.00013698,2]
[329881366,1718784634699,-500.0,0.00013698,2]
[329881367,1718784634709,-520.62,0.00013698,2]
[329881368,1718784634718,-692.2,0.00013698,2]
[329881369,1718784634731,-1034.64,0.00013698,2]
[329881370,1718784634741,-500.0,0.00013698,2]
[329881371,1718784634750,-735.02,0.00013698,2]
[329881372,1718784634761,-591.44,0.00013698,2]
[329881373,1718784634771,-500.0,0.00013698,2]
[329881374,1718784634782,-500.0,0.00013698,2]
[329881375,1718784634791,-500.0,0.00013698,2]
[329881376,1718784634800,-500.0,0.00013698,2]
[329881377,1718784634811,-849.39,0.00013698,2]
[329881378,1718784634820,-635.96,0.00013698,2]
[329881379,1718784634830,-547.37,0.00013698,2]
[329881380,1718784634842,-500.0,0.00013698,2]
[329881381,1718784634854,-862.83,0.00013698,2]
[329881382,1718784634863,-1276.59,0.00013698,2]
[329881383,1718784634874,-500.0,0.00013698,2]
[329881384,1718784634885,-488.07838688,0.00013698,2]
[329881385,1718784634896,-500.0,0.00013698,2]
[329881386,1718784634905,-655.55,0.00013698,2]
[329881387,1718784634916,-564.53,0.00013698,2]
[329881388,1718784634926,-1020.4,0.00013698,2]
[329881389,1718784634936,-500.0,0.00013698,2]
[329881390,1718784634946,-500.0,0.00013698,2]
[329881391,1718784634957,-776.31,0.00013698,2]
[329881392,1718784634967,-559.75,0.00013698,2]